bitfinex-derivatives/quotes_BTCF0:USTF0_20240824
["timestamp","ask_amount","ask_price","bid_price","bid_amount"]
[1724516468248,0.077955,64111.0,64109.0,0.36103396]
[1724516468458,0.07786604,64113.0,64109.0,0.36103396]
[1724516468749,0.077956,64110.0,64109.0,0.00023396]
[1724516469253,0.077996,64110.0,64109.0,0.00023396]
[1724516469752,0.438796,64110.0,64109.0,0.00023396]
[1724516470353,0.077967,64101.0,64100.0,0.06217917]
[1724516470552,0.438767,64101.0,64100.0,0.06217917]
[1724516471147,0.438807,64101.0,64100.0,0.06217917]
[1724516473153,0.438807,64101.0,64100.0,0.06317917]
[1724516475856,0.51657786,64101.0,64100.0,0.001]
[1724516477056,1.38457786,64101.0,64100.0,0.001]
[1724516480551,1.38457786,64101.0,64100.0,0.078968]
[1724516480552,0.43861086,64101.0,64100.0,0.078968]
[1724516480958,0.36084,64101.0,64100.0,0.078968]
[1724516481350,0.04664739,64101.0,64100.0,0.078968]
[1724516481864,4e-05,64101.0,64100.0,0.078968]
[1724516484157,0.04663969,64101.0,64100.0,0.078968]
[1724516484455,4e-05,64101.0,64100.0,0.078968]
[1724516484653,0.04664059,64101.0,64100.0,0.078968]
[1724516487863,4e-05,64101.0,64100.0,0.078968]
[1724516488058,4e-05,64101.0,64100.0,0.09543218]
[1724516488255,0.04664059,64101.0,64100.0,0.09543218]
[1724516488455,4e-05,64101.0,64100.0,0.09543218]
[1724516489452,0.04660059,64107.0,64101.0,0.077967]
[1724516489654,0.04660059,64110.0,64106.0,0.3608]
[1724516489860,0.44098234,64116.0,64107.0,0.1086]
[1724516489861,0.04660059,64112.0,64107.0,0.1086]
[1724516490161,0.36303334,64116.0,64113.0,0.077952]
[1724516490162,0.04660059,64114.0,64113.0,0.077952]
[1724516490959,0.04660059,64114.0,64113.0,0.077992]
[1724516491260,0.36103334,64116.0,64114.0,0.077951]
[1724516491261,0.04660059,64115.0,64114.0,0.077951]
[1724516491463,0.04661324,64115.0,64114.0,0.0527]
[1724516492065,0.04661324,64115.0,64114.0,0.05274]
[1724516492869,0.04661324,64115.0,64114.0,0.130691]
[1724516493368,0.04861324,64115.0,64114.0,0.131691]
[1724516493568,0.04961324,64115.0,64114.0,0.132691]
[1724516494768,0.003,64115.0,64114.0,0.132691]
[1724516495860,0.003,64115.0,64114.0,0.079991]
[1724516496164,0.003,64115.0,64114.0,0.00204]
[1724516496359,0.14309579,64115.0,64114.0,0.00204]
[1724516496971,0.08095,64115.0,64114.0,0.00204]
[1724516500070,0.077958,64108.0,64107.0,0.00023396]
[1724516500265,0.077958,64108.0,64096.0,0.21836]
[1724516500266,0.5808,64108.0,64100.0,0.01681077]
[1724516500569,0.50094967,64101.0,64098.0,0.07797]
[1724516500767,0.077971,64097.0,64096.0,0.21836]
[1724516501565,0.078011,64097.0,64096.0,0.21836]
[1724516501773,0.078011,64097.0,64092.0,0.07812318]
[1724516502570,4e-05,64096.0,64092.0,0.07812318]
[1724516502976,0.0466409,64095.0,64092.0,0.09461082]
[1724516503479,4e-05,64093.0,64092.0,0.09461082]
[1724516504073,4e-05,64093.0,64092.0,0.10261082]
[1724516504576,4e-05,64093.0,64092.0,0.11161082]
[1724516506269,4e-05,64093.0,64092.0,0.57969082]
[1724516506473,0.0466409,64102.0,64101.0,0.077967]
[1724516506878,0.04687486,64103.0,64102.0,0.077965]
[1724516507379,0.00023396,64103.0,64102.0,0.077965]
[1724516509484,0.04687486,64103.0,64102.0,0.077965]
[1724516509780,0.04987486,64103.0,64102.0,0.077965]
[1724516509986,0.04987856,64103.0,64102.0,0.077965]
[1724516510188,0.00323396,64103.0,64102.0,0.077965]
[1724516512085,0.00323396,64103.0,64102.0,0.0942332]
[1724516517386,0.00323396,64103.0,64102.0,0.6750332]
[1724516517587,0.04665969,64111.0,64102.0,0.5970682]
[1724516517885,0.2098667,64118.0,64111.0,0.077954]
[1724516517886,0.04665969,64112.0,64111.0,0.077954]
[1724516518083,0.04665969,64113.0,64112.0,0.077953]
[1724516518288,0.0542,64118.0,64113.0,0.077952]
[1724516518289,0.04688969,64114.0,64113.0,0.077952]
[1724516519295,0.00023,64114.0,64113.0,0.077952]
[1724516519682,0.00123,64114.0,64113.0,0.078952]
[1724516520983,0.00323,64114.0,64113.0,0.079952]
[1724516522581,0.00323,64114.0,64113.0,0.002]
[1724516523082,0.00323,64114.0,64113.0,0.00085845]
[1724516523488,0.05783,64114.0,64113.0,0.00085845]
[1724516523892,0.135781,64114.0,64113.0,0.00085845]
[1724516524291,0.716581,64114.0,64113.0,0.00085845]
[1724516524486,0.7943017,64114.0,64113.0,0.00085845]
[1724516525195,0.75007815,64114.0,64113.0,0.00085845]
[1724516528497,0.75007815,64114.0,64107.0,0.00023396]
[1724516528498,0.077958,64108.0,64107.0,0.00023396]
[1724516528687,0.438758,64108.0,64107.0,0.00023396]
[1724516529399,0.438798,64108.0,64107.0,0.00023396]
[1724516529995,0.439798,64108.0,64107.0,0.00123396]
[1724516530391,0.441798,64108.0,64107.0,0.00123396]
[1724516530798,0.077967,64101.0,64099.0,0.077969]
[1724516531395,0.14018342,64101.0,64099.0,0.077969]
[1724516531602,4e-05,64100.0,64099.0,0.077969]
[1724516532990,4e-05,64100.0,64099.0,0.078969]
[1724516532991,0.06225642,64100.0,64099.0,0.078969]
[1724516534204,0.06227907,64100.0,64099.0,0.078969]
[1724516534403,4e-05,64100.0,64099.0,0.078969]
[1724516534899,0.06227891,64100.0,64099.0,0.078969]
[1724516535206,4e-05,64100.0,64099.0,0.439769]
[1724516536101,0.04671995,64100.0,64099.0,0.441769]
[1724516536806,4e-05,64100.0,64099.0,0.441769]
[1724516537201,4e-05,64100.0,64099.0,0.439769]
[1724516537392,4e-05,64100.0,64099.0,0.441769]
[1724516537793,4e-05,64100.0,64099.0,1.37198817]
[1724516538113,4e-05,64100.0,64099.0,1.309809]
[1724516538892,4e-05,64100.0,64099.0,1.387778]
[1724516539098,0.00023396,64106.0,64105.0,0.077962]
[1724516539301,0.00023,64114.0,64105.0,0.95691139]
[1724516539302,0.04667995,64113.0,64105.0,0.95691139]
[1724516539512,0.00023,64114.0,64113.0,0.077952]
[1724516539906,0.00023,64114.0,64113.0,0.188552]
[1724516540103,0.04689489,64114.0,64113.0,0.188552]
[1724516540307,0.04689489,64114.0,64113.0,0.188592]
[1724516540810,0.04889489,64114.0,64113.0,0.189592]
[1724516541199,0.00223,64114.0,64113.0,0.189592]
[1724516541602,0.04889489,64114.0,64113.0,0.189592]
[1724516542208,0.00523,64114.0,64113.0,0.190592]
[1724516545411,0.00523,64114.0,64113.0,0.079992]
[1724516545910,0.00523,64114.0,64113.0,0.00204]
[1724516546706,0.16095152,64114.0,64113.0,0.00204]
[1724516546922,0.21615152,64114.0,64113.0,0.00204]
[1724516547704,0.138381,64114.0,64113.0,0.00204]
[1724516547904,0.17180014,64114.0,64113.0,0.00204]
[1724516548416,0.138381,64114.0,64113.0,0.00204]
[1724516548604,0.17182551,64114.0,64113.0,0.00204]
[1724516548803,0.138381,64114.0,64113.0,0.00204]
[1724516549006,0.17181146,64114.0,64113.0,0.00204]
[1724516549609,0.138381,64114.0,64113.0,0.00204]
[1724516549808,0.21614891,64114.0,64113.0,0.00204]
[1724516550308,0.138151,64114.0,64113.0,0.00204]
[1724516550708,0.138151,64114.0,64107.0,0.2346996]
[1724516550709,0.077958,64108.0,64107.0,0.00023396]
[1724516550914,0.438758,64108.0,64107.0,0.00023396]
[1724516551309,0.53044558,64108.0,64107.0,0.00023396]
[1724516551516,0.497298,64108.0,64107.0,0.00023396]
[1724516552009,0.500298,64108.0,64107.0,0.00023396]
[1724516552609,0.503298,64108.0,64107.0,0.00123396]
[1724516554109,0.142498,64108.0,64107.0,0.00123396]
[1724516557317,0.142498,64108.0,64107.0,0.07919296]
[1724516558414,0.06454,64108.0,64107.0,0.07919296]
[1724516561510,0.12677162,64108.0,64107.0,0.07919296]
[1724516561711,0.12677162,64108.0,64107.0,0.00123396]
[1724516561712,0.142498,64108.0,64107.0,0.00123396]
[1724516561925,0.077962,64105.0,64103.0,0.077963]
[1724516562313,0.3608,64104.0,64103.0,0.077963]
[1724516562718,0.36084,64104.0,64103.0,0.077963]
[1724516563925,0.36384,64104.0,64103.0,0.077963]
[1724516564921,0.00304,64104.0,64103.0,0.077963]
[1724516565718,0.00504,64104.0,64103.0,0.077963]
[1724516573827,0.08283491,64104.0,64103.0,0.077963]
[1724516574328,0.00504,64104.0,64103.0,0.077963]
[1724516574527,0.0829141,64104.0,64103.0,0.077963]
[1724516574732,0.0829141,64104.0,64099.0,0.01675157]
[1724516575029,0.0778741,64103.0,64097.0,0.36103396]
[1724516575219,0.0778741,64102.0,64097.0,0.36103396]
[1724516575424,0.1558401,64102.0,64100.0,0.077967]
[1724516576027,0.0778741,64101.0,64100.0,0.077967]
[1724516576434,0.1678741,64101.0,64100.0,0.077967]
[1724516576636,0.1678741,64101.0,64100.0,0.078967]
[1724516580034,0.09,64101.0,64100.0,0.078967]
[1724516580229,0.15589086,64102.0,64101.0,0.077967]
[1724516580430,0.24589086,64102.0,64101.0,0.077967]
[1724516581129,0.24589086,64102.0,64101.0,0.078007]
[1724516582138,0.16792486,64102.0,64101.0,0.078007]
[1724516583036,0.1679245,64102.0,64101.0,0.078007]
[1724516583241,0.1689245,64102.0,64101.0,0.078007]
[1724516584637,0.1689245,64102.0,64101.0,0.50085259]
[1724516584638,0.001,64102.0,64101.0,0.50085259]
[1724516584844,0.06333586,64102.0,64101.0,0.50085259]
[1724516585047,0.001,64102.0,64101.0,0.50085259]
[1724516586235,0.001,64102.0,64101.0,0.438807]
[1724516586837,0.001,64102.0,64101.0,1.384774]
[1724516587237,0.04774777,64102.0,64101.0,1.384774]
[1724516588041,0.04774777,64102.0,64101.0,1.396807]
[1724516590537,0.04774777,64102.0,64101.0,1.05897747]
[1724516591139,0.04774777,64102.0,64101.0,1.074774]
[1724516591344,0.001,64102.0,64101.0,1.074774]
[1724516591531,0.04674777,64103.0,64102.0,0.077965]
[1724516592048,4e-05,64104.0,64103.0,0.155928]
[1724516592241,4e-05,64104.0,64103.0,1.078228]
[1724516592741,4e-05,64104.0,64103.0,1.078268]
[1724516593733,0.00304,64104.0,64103.0,1.078268]
[1724516595139,0.00504,64104.0,64103.0,1.439068]
[1724516596748,0.00504,64104.0,64103.0,1.50116945]
[1724516597447,0.00504,64104.0,64103.0,1.439068]
[1724516599350,0.00504,64104.0,64103.0,1.039068]
[1724516599751,0.00504,64104.0,64103.0,0.571068]
[1724516601053,0.00504,64104.0,64103.0,1.439068]
[1724516601654,0.00504,64104.0,64103.0,1.039068]
[1724516603247,0.00504,64104.0,64103.0,0.571068]
[1724516604646,0.00504,64104.0,64103.0,1.039068]
[1724516604956,0.00504,64104.0,64103.0,1.10114555]
[1724516605140,0.00504,64104.0,64103.0,1.039068]
[1724516605847,0.00504,64104.0,64103.0,0.571068]
[1724516606050,0.00504,64104.0,64103.0,1.039068]
[1724516606753,0.00504,64104.0,64103.0,0.571068]
[1724516607557,0.00504,64104.0,64103.0,0.210268]
[1724516607755,0.00504,64104.0,64103.0,0.571068]
[1724516609648,0.00504,64104.0,64103.0,1.11662974]
[1724516610053,0.00504,64104.0,64103.0,1.039068]
[1724516612348,0.04674777,64113.0,64112.0,0.077953]
[1724516612552,0.04686777,64118.0,64112.0,0.4508]
[1724516612747,0.00012,64118.0,64117.0,0.077947]
[1724516613551,0.00012,64118.0,64117.0,0.077987]
[1724516614349,0.05086777,64118.0,64117.0,0.078987]
[1724516614556,0.05081414,64118.0,64117.0,0.078987]
[1724516614761,0.05381414,64118.0,64117.0,0.079987]
[1724516614958,0.05381414,64118.0,64117.0,0.079757]
[1724516615461,0.05381414,64118.0,64117.0,0.440557]
[1724516616063,0.05381414,64118.0,64117.0,0.079757]
[1724516616252,0.05381414,64118.0,64117.0,0.440557]
[1724516617359,0.00712,64118.0,64117.0,0.45737137]
[1724516619967,0.00712,64118.0,64117.0,0.5974156]
[1724516620266,0.00712,64118.0,64117.0,0.6527156]
[1724516621166,0.00512,64118.0,64117.0,0.53531837]
[1724516621966,0.00312,64118.0,64117.0,0.53531837]
[1724516623162,0.00312,64118.0,64117.0,0.002]
[1724516623163,0.638946,64118.0,64117.0,0.002]
[1724516623365,1.03333232,64118.0,64117.0,0.00085855]
[1724516624262,1.03321232,64118.0,64117.0,0.00085855]
[1724516624464,1.03337232,64118.0,64117.0,0.00085855]
[1724516624660,0.077948,64117.0,64115.0,0.01631241]
[1724516624863,0.95542632,64118.0,64114.0,0.077951]
[1724516624864,0.07779971,64116.0,64114.0,0.077951]
[1724516625065,0.16779983,64115.0,64114.0,0.077951]
[1724516625263,0.22609983,64115.0,64114.0,0.077951]
[1724516625657,0.14834,64115.0,64114.0,0.077951]
[1724516626259,0.22613983,64115.0,64114.0,0.077951]
[1724516626769,0.14834,64115.0,64114.0,0.077951]
[1724516626968,0.15234,64115.0,64114.0,0.077951]
[1724516627957,0.15434,64115.0,64114.0,0.077951]
[1724516628160,0.00604,64115.0,64114.0,0.167951]
[1724516628469,0.00604,64115.0,64114.0,0.23004823]
[1724516628763,0.00604,64115.0,64114.0,0.167951]
[1724516629172,0.00604,64115.0,64114.0,0.23000806]
[1724516629482,0.00604,64115.0,64114.0,0.167951]
[1724516630369,0.00204,64115.0,64114.0,0.167951]
[1724516630571,0.00204,64115.0,64114.0,0.077951]
[1724516630758,0.00204,64115.0,64114.0,0.1400015]
[1724516631068,0.00204,64115.0,64114.0,0.077951]
[1724516631069,0.00104,64115.0,64114.0,0.077951]
[1724516631661,0.00104,64115.0,64114.0,0.14000114]
[1724516633272,0.00104,64115.0,64114.0,0.077951]
[1724516634275,0.0563,64122.0,64114.0,0.077951]
[1724516634276,0.0062777,64134.0,64133.0,0.077928]
[1724516634471,0.0062777,64134.0,64133.0,0.799528]
[1724516634472,0.06219839,64134.0,64133.0,0.799528]
[1724516634666,0.04664594,64136.0,64133.0,0.799528]
[1724516634867,0.04664594,64138.0,64134.0,0.04649402]
[1724516635077,0.11869839,64137.0,64133.0,0.7216]
[1724516635377,0.04664923,64136.0,64133.0,0.7216]
[1724516635775,0.04664923,64135.0,64133.0,0.7216]
[1724516636271,0.04664923,64135.0,64133.0,0.3608]
[1724516636272,0.46776,64134.0,64133.0,0.3608]
[1724516636683,0.86876,64134.0,64133.0,0.3618]
[1724516637177,0.86776,64134.0,64133.0,0.3618]
[1724516637368,0.86776,64134.0,64133.0,0.3628]
[1724516637964,0.87076,64134.0,64133.0,0.3618]
[1724516638168,0.87076,64134.0,64133.0,0.3628]
[1724516639276,0.94853572,64134.0,64133.0,0.002]
[1724516640373,0.87076,64134.0,64133.0,0.002]
[1724516640574,0.8967684,64134.0,64133.0,0.002]
[1724516640973,0.94850611,64134.0,64133.0,0.002]
[1724516641172,0.94850701,64134.0,64133.0,0.002]
[1724516641479,0.94850854,64134.0,64133.0,0.002]
[1724516641871,0.87076,64134.0,64133.0,0.002]
[1724516642376,0.94850854,64134.0,64133.0,0.002]
[1724516643080,0.94850837,64134.0,64133.0,0.002]
[1724516643273,0.87076,64134.0,64133.0,0.002]
[1724516643479,0.8969086,64134.0,64133.0,0.002]
[1724516643684,0.89684907,64134.0,64133.0,0.002]
[1724516643871,0.87076,64134.0,64133.0,0.002]
[1724516644069,0.89688355,64134.0,64133.0,0.002]
[1724516645077,0.08074983,64134.0,64133.0,0.68976]
[1724516645275,0.08074983,64134.0,64133.0,0.222]
[1724516645276,0.003,64134.0,64133.0,0.222]
[1724516645481,0.04663997,64139.0,64133.0,0.68976]
[1724516645677,0.00023334,64141.0,64140.0,0.077919]
[1724516645983,0.04687331,64141.0,64140.0,0.3608]
[1724516646375,0.00023334,64141.0,64140.0,0.3608]
[1724516647374,0.00023334,64141.0,64140.0,0.3618]
[1724516647375,0.00123334,64141.0,64140.0,0.3618]
[1724516647582,0.00423334,64141.0,64140.0,0.3628]
[1724516648173,0.47195334,64141.0,64140.0,0.3628]
[1724516648587,0.53414588,64141.0,64140.0,0.3628]
[1724516648990,0.47195334,64141.0,64140.0,0.3628]
[1724516649289,0.53414588,64141.0,64140.0,0.3628]
[1724516651091,0.47195334,64141.0,64140.0,0.3628]
[1724516651288,0.47195334,64141.0,64140.0,0.002]
[1724516652095,0.00423334,64141.0,64140.0,0.079919]
[1724516655492,0.22423334,64141.0,64140.0,0.002]
[1724516655693,0.077924,64136.0,64135.0,0.7216]
[1724516655897,0.12450958,64136.0,64135.0,0.7216]
[1724516656104,0.077924,64136.0,64135.0,0.7216]
[1724516656799,0.0621141,64136.0,64134.0,0.438726]
[1724516657098,0.001,64136.0,64134.0,0.3608]
[1724516657300,0.001,64136.0,64134.0,0.40727767]
[1724516657502,0.001,64136.0,64135.0,0.1151]
[1724516657705,0.001,64136.0,64135.0,0.1718]
[1724516658498,0.001,64136.0,64135.0,0.16157767]
[1724516658703,0.001,64136.0,64135.0,0.1151]
[1724516659510,0.002,64136.0,64135.0,0.1151]
[1724516659711,0.004,64136.0,64134.0,0.3608]
[1724516660205,0.0661141,64136.0,64134.0,0.3608]
[1724516660809,0.0651141,64136.0,64134.0,0.3608]
[1724516661405,0.46776,64135.0,64129.0,0.00023396]
[1724516661712,0.4651141,64136.0,64129.0,0.00023396]
[1724516661713,0.29793,64131.0,64129.0,0.00023396]
[1724516662103,0.0565,64130.0,64129.0,0.00023396]
[1724516662807,0.29793,64131.0,64129.0,0.00423396]
[1724516663409,0.8286,64130.0,64119.0,0.04647767]
[1724516663610,0.8286,64130.0,64117.0,0.077947]
[1724516663611,0.06218691,64122.0,64117.0,0.077947]
[1724516663813,0.06218691,64122.0,64118.0,0.077946]
[1724516664113,0.04664448,64120.0,64118.0,0.077946]
[1724516664411,0.04664448,64122.0,64118.0,0.077946]
[1724516664599,0.04664448,64122.0,64121.0,0.3608]
[1724516664798,0.07794,64124.0,64121.0,0.3608]
[1724516665000,0.04662984,64123.0,64121.0,0.3608]
[1724516665406,0.12456984,64124.0,64121.0,0.3608]
[1724516666710,0.12456984,64124.0,64121.0,0.3658]
[1724516667213,0.04662984,64123.0,64121.0,0.3658]
[1724516667518,0.04662984,64123.0,64121.0,0.3688]
[1724516669115,0.12456984,64124.0,64121.0,0.3688]
[1724516669318,0.04662984,64123.0,64121.0,0.3688]
[1724516669908,0.00023396,64125.0,64121.0,0.3688]
[1724516670213,0.43876364,64136.0,64124.0,0.7216]
[1724516670214,0.04662984,64134.0,64124.0,0.7216]
[1724516670420,0.00023,64136.0,64124.0,0.7216]
[1724516670421,0.04662984,64135.0,64133.0,0.3608]
[1724516670616,0.04662984,64135.0,64134.0,0.1708]
[1724516670816,0.04685984,64136.0,64134.0,0.0588]
[1724516672116,0.04685984,64136.0,64134.0,0.0598]
[1724516672117,0.00423,64136.0,64134.0,0.0598]
[1724516673523,0.00523,64136.0,64134.0,0.0608]
[1724516673717,0.00523,64136.0,64135.0,0.077925]
[1724516674221,0.00123,64136.0,64135.0,0.077925]
[1724516674418,0.00423,64136.0,64135.0,0.077925]
[1724516675017,0.00023334,64141.0,64140.0,0.077919]
[1724516675220,0.00023334,64141.0,64140.0,0.438719]
[1724516675420,0.3608,64158.0,64140.0,0.438719]
[1724516675421,0.04662984,64149.0,64147.0,0.077911]
[1724516675722,0.2753,64168.0,64148.0,0.4177]
[1724516675723,0.04662984,64151.0,64148.0,0.4177]
[1724516675923,0.04662984,64153.0,64149.0,0.3608]
[1724516676114,0.04662984,64155.0,64149.0,0.3608]
[1724516676425,0.04662984,64156.0,64149.0,0.3608]
[1724516676622,0.06218691,64158.0,64155.0,0.3608]
[1724516676921,0.22,64161.0,64155.0,0.3608]
[1724516676922,0.06218691,64156.0,64155.0,0.3608]
[1724516677223,0.06218691,64156.0,64149.0,0.3608]
[1724516677224,0.22,64156.0,64149.0,0.3608]
[1724516677425,0.04657227,64150.0,64149.0,0.3608]
[1724516677821,0.04657227,64151.0,64149.0,0.3618]
[1724516678024,0.04657227,64151.0,64146.0,0.00023396]
[1724516678025,0.077911,64147.0,64146.0,0.00023396]
[1724516678413,0.945591,64147.0,64146.0,0.00023396]
[1724516679123,0.545591,64147.0,64146.0,0.00023396]
[1724516679327,0.077911,64147.0,64146.0,0.00023396]
[1724516680530,0.078911,64147.0,64146.0,0.00123396]
[1724516680728,0.078911,64147.0,64146.0,0.00223396]
[1724516681422,0.12547827,64147.0,64146.0,0.00223396]
[1724516681730,0.946591,64147.0,64146.0,0.00223396]
[1724516682231,1.00869235,64147.0,64146.0,0.00223396]
[1724516682433,0.946591,64147.0,64146.0,0.00223396]
[1724516684022,0.546591,64147.0,64146.0,0.00223396]
[1724516684225,0.60868758,64147.0,64146.0,0.00223396]
[1724516684534,0.946591,64147.0,64146.0,0.00223396]
[1724516685928,0.546591,64147.0,64146.0,0.00223396]
[1724516686240,1.00869384,64147.0,64146.0,0.00223396]
[1724516686531,0.14101384,64147.0,64146.0,0.00223396]
[1724516687939,0.078911,64147.0,64146.0,0.00223396]
[1724516688536,0.12548502,64147.0,64146.0,0.00223396]
[1724516689339,0.001,64147.0,64146.0,0.00223396]
[1724516689530,0.001,64147.0,64146.0,0.16973396]
[1724516689727,0.04656649,64162.0,64146.0,0.16973396]
[1724516689941,0.04656649,64163.0,64161.0,0.3608]
[1724516690233,0.12445649,64164.0,64161.0,0.3608]
[1724516690539,0.06210284,64163.0,64154.0,0.3608]
[1724516690738,0.46756,64164.0,64154.0,0.3608]
[1724516690739,0.04654273,64160.0,64154.0,0.3608]
[1724516690936,0.04654273,64161.0,64154.0,0.3608]
[1724516691833,0.12443673,64161.0,64154.0,0.3608]
[1724516692836,0.12443673,64161.0,64154.0,0.3618]
[1724516693038,0.04654273,64160.0,64154.0,0.3618]
[1724516693249,0.12443773,64160.0,64154.0,0.3618]
[1724516693544,0.077898,64158.0,64154.0,0.3628]
[1724516693837,0.0779,64156.0,64154.0,0.3628]
[1724516694036,0.12444273,64156.0,64154.0,0.3628]
[1724516694241,0.0779,64156.0,64154.0,0.3628]
[1724516694440,0.0779,64156.0,64154.0,0.002]
[1724516695147,0.14000284,64156.0,64154.0,0.002]
[1724516695641,0.14000284,64156.0,64154.0,0.001]
[1724516695832,0.14000284,64156.0,64154.0,0.002]
[1724516696037,0.14000284,64156.0,64154.0,0.001]
[1724516696341,0.14100284,64156.0,64154.0,0.002]
[1724516696842,0.06210284,64155.0,64154.0,0.002]
[1724516697039,0.52970284,64155.0,64154.0,0.002]
[1724516697341,0.8676,64155.0,64154.0,0.002]
[1724516697546,0.4676,64155.0,64154.0,0.002]
[1724516697844,0.0789,64156.0,64154.0,0.002]
[1724516698234,0.5465,64156.0,64154.0,0.001]
[1724516698440,0.0789,64156.0,64154.0,0.002]
[1724516698841,0.001,64155.0,64154.0,0.001]
[1724516699042,0.001,64155.0,64154.0,0.002]
[1724516699249,0.54637364,64155.0,64154.0,0.002]
[1724516699543,0.07773364,64155.0,64154.0,0.001]
[1724516699742,0.07773364,64155.0,64154.0,0.002]
[1724516700349,0.07773364,64155.0,64154.0,0.001]
[1724516700546,0.07873364,64155.0,64154.0,0.002]
[1724516700756,0.001,64155.0,64154.0,0.002]
[1724516701245,0.04763027,64155.0,64154.0,0.04841383]
[1724516701550,0.04663027,64156.0,64155.0,0.077901]
[1724516701848,0.04663027,64157.0,64155.0,0.438701]
[1724516702048,0.04220639,64159.0,64157.0,0.077899]
[1724516702346,0.04662462,64164.0,64158.0,0.04641383]
[1724516702548,0.04662462,64166.0,64163.0,0.3608]
[1724516702745,0.04662462,64164.0,64163.0,0.3608]
[1724516702942,0.04662462,64164.0,64158.0,0.10963377]
[1724516702943,0.06216899,64164.0,64158.0,0.10963377]
[1724516703248,0.06216899,64161.0,64158.0,0.10963377]
[1724516704440,0.04660557,64160.0,64158.0,0.18752977]
[1724516704643,0.04660557,64159.0,64158.0,0.18752977]
[1724516704841,0.04660557,64160.0,64158.0,0.18852977]
[1724516705538,0.04660557,64160.0,64158.0,0.18952977]
[1724516705748,0.07773364,64170.0,64158.0,0.18952977]
[1724516705749,0.04660557,64161.0,64158.0,0.18952977]
[1724516706246,0.04660557,64162.0,64158.0,0.18952977]
[1724516706440,0.04660557,64161.0,64158.0,0.18952977]
[1724516707248,0.077883,64170.0,64158.0,0.11163377]
[1724516707249,0.04660557,64162.0,64158.0,0.11163377]
[1724516707437,0.04660557,64163.0,64158.0,0.11163377]
[1724516707639,0.04660557,64164.0,64158.0,0.11163377]
[1724516707844,0.04660557,64166.0,64165.0,0.077889]
[1724516708041,0.06216899,64171.0,64165.0,0.077889]
[1724516708042,0.04660557,64167.0,64165.0,0.077889]
[1724516708247,0.04660557,64167.0,64166.0,0.0572]
[1724516708438,0.04660557,64169.0,64166.0,0.0572]
[1724516709141,0.46752,64168.0,64158.0,0.00123377]
[1724516709345,0.04657416,64159.0,64158.0,0.00023377]
[1724516709537,0.04657416,64160.0,64158.0,0.00023377]
[1724516710437,0.04657416,64160.0,64158.0,0.07813077]
[1724516710643,0.04657416,64161.0,64158.0,0.07813077]
[1724516711243,0.04657416,64160.0,64158.0,0.07813077]
[1724516711639,0.04657416,64160.0,64158.0,0.07913077]
[1724516711852,0.04657416,64162.0,64158.0,0.07913077]
[1724516712351,0.04657416,64162.0,64158.0,0.08013077]
[1724516713545,0.04657416,64162.0,64158.0,0.00223377]
[1724516713750,0.22,64159.0,64158.0,0.00223377]
[1724516714451,1.16533364,64159.0,64150.0,0.3608]
[1724516714653,0.22,64152.0,64150.0,0.3608]
[1724516714946,0.28213031,64152.0,64142.0,0.077916]
[1724516715153,0.04659829,64146.0,64141.0,0.3608]
[1724516715448,0.077911,64147.0,64141.0,0.3608]
[1724516715449,0.04659829,64145.0,64141.0,0.3608]
[1724516715756,0.04659829,64144.0,64141.0,0.3608]
[1724516716648,0.04659829,64145.0,64141.0,0.3638]
[1724516717853,0.04659829,64146.0,64141.0,0.3678]
[1724516718153,0.04659829,64144.0,64141.0,0.3678]
[1724516718352,0.077916,64143.0,64141.0,0.3678]
[1724516718545,0.04659829,64142.0,64141.0,0.3658]
[1724516718752,0.077916,64143.0,64141.0,0.3658]
[1724516718957,0.14004631,64143.0,64141.0,0.3638]
[1724516719348,0.06213031,64142.0,64141.0,0.3638]
[1724516719547,0.14004631,64143.0,64141.0,0.3618]
[1724516719754,0.14204631,64143.0,64141.0,0.3618]
[1724516720351,0.077916,64143.0,64141.0,0.3618]
[1724516720554,0.04660113,64142.0,64141.0,0.3618]
[1724516721458,0.00023316,64150.0,64148.0,0.077909]
[1724516721648,0.00023316,64150.0,64149.0,0.4164]
[1724516722863,0.00023316,64150.0,64149.0,0.93145383]
[1724516723156,0.00023316,64150.0,64149.0,0.93345383]
[1724516724153,0.00023316,64150.0,64149.0,0.88704]
[1724516724551,0.00023316,64150.0,64149.0,0.4194]
[1724516724751,0.00023316,64150.0,64149.0,0.88704]
[1724516725653,0.00023316,64150.0,64149.0,0.4194]
[1724516726253,0.00023316,64150.0,64149.0,0.88704]
[1724516726854,0.00023316,64150.0,64149.0,0.93345383]
[1724516727056,0.00023316,64150.0,64149.0,0.4194]
[1724516727450,0.00023316,64150.0,64149.0,0.46581383]
[1724516727664,0.00023316,64150.0,64149.0,0.4194]
[1724516729655,0.0465949,64162.0,64150.0,0.46764]
[1724516729851,0.04659062,64164.0,64161.0,0.3608]
[1724516730060,0.07773364,64172.0,64166.0,0.077887]
[1724516730061,0.04659062,64169.0,64166.0,0.077887]
[1724516730359,0.04659062,64173.0,64168.0,0.3608]
[1724516730659,0.06213031,64175.0,64168.0,0.3608]
[1724516730660,0.04659062,64172.0,64168.0,0.3608]
[1724516731453,0.09314603,64184.0,64168.0,0.3608]
[1724516731454,0.04659062,64175.0,64170.0,0.3608]
[1724516731659,0.14834603,64188.0,64170.0,0.3608]
[1724516731660,0.04659062,64177.0,64170.0,0.3608]
[1724516731968,0.04659062,64178.0,64176.0,0.3608]
[1724516732260,0.04659062,64178.0,64177.0,0.077874]
[1724516732468,0.04659062,64179.0,64177.0,0.077874]
[1724516732756,0.04659062,64182.0,64178.0,0.077872]
[1724516733160,0.04659062,64182.0,64180.0,0.077869]
[1724516733360,0.04659062,64182.0,64179.0,0.3608]
[1724516733361,0.04652037,64182.0,64179.0,0.3608]
[1724516733662,0.04652037,64184.0,64179.0,0.3608]
[1724516733860,0.04652037,64183.0,64179.0,0.3608]
[1724516734053,0.04652037,64180.0,64179.0,0.3608]
[1724516734563,0.22,64181.0,64179.0,0.3608]
[1724516734758,0.04652037,64180.0,64179.0,0.3608]